fUST/lending_fUST_20260520
["ID","MTS","AMOUNT","RATE_DAILY","PERIOD"]
[422692580,1779253839000,-864.46,8.219e-05,2]
[422692589,1779253839000,-500.0,8.219e-05,2]
[422692588,1779253839000,-500.0,8.219e-05,2]
[422692556,1779253839000,-954.32,8.219e-05,2]
[422692586,1779253839000,-2890.01,8.219e-05,2]
[422692576,1779253839000,-500.0,8.219e-05,2]
[422692563,1779253839000,-501.36587182,8.219e-05,2]
[422692537,1779253839000,-500.0,8.219e-05,2]
[422692555,1779253839000,-500.0,8.219e-05,2]
[422692587,1779253839000,-375.48992556,8.219e-05,2]
[422692531,1779253839000,-500.0,8.219e-05,2]
[422692530,1779253839000,-500.0,8.219e-05,2]
[422692532,1779253839000,-500.75782657,8.219e-05,2]
[422692534,1779253839000,-500.0,8.219e-05,2]
[422692538,1779253839000,-500.0,8.219e-05,2]
[422692535,1779253839000,-500.0,8.219e-05,2]
[422692536,1779253839000,-500.0,8.219e-05,2]
[422692533,1779253839000,-500.0,8.219e-05,2]
[422692539,1779253839000,-719.85,8.219e-05,2]
[422692540,1779253839000,-500.0,8.219e-05,2]
[422692542,1779253839000,-501.59464652,8.219e-05,2]
[422692562,1779253839000,-500.0,8.219e-05,2]
[422692550,1779253839000,-500.87015989,8.219e-05,2]
[422692551,1779253839000,-554.37,8.219e-05,2]
[422692552,1779253839000,-535.7,8.219e-05,2]
[422692553,1779253839000,-500.0,8.219e-05,2]
[422692544,1779253839000,-500.0,8.219e-05,2]
[422692546,1779253839000,-502.04778168,8.219e-05,2]
[422692543,1779253839000,-500.0,8.219e-05,2]
[422692547,1779253839000,-2726.82,8.219e-05,2]
[422692548,1779253839000,-525.33,8.219e-05,2]
[422692549,1779253839000,-500.0,8.219e-05,2]
[422692545,1779253839000,-500.0,8.219e-05,2]
[422692554,1779253839000,-500.0,8.219e-05,2]
[422692561,1779253839000,-956.18,8.219e-05,2]
[422692541,1779253839000,-1143.38,8.219e-05,2]
[422692579,1779253839000,-500.0,8.219e-05,2]
[422692625,1779253839000,-500.0,8.219e-05,2]
[422692585,1779253839000,-501.33223102,8.219e-05,2]
[422692618,1779253839000,-500.0,8.219e-05,2]
[422692624,1779253839000,-859.28,8.219e-05,2]
[422692622,1779253839000,-500.0,8.219e-05,2]
[422692623,1779253839000,-500.0,8.219e-05,2]
[422692620,1779253839000,-541.24,8.219e-05,2]
[422692627,1779253839000,-621.57966101,8.219e-05,2]
[422692626,1779253839000,-500.0,8.219e-05,2]
[422692629,1779253839000,-501.65594665,8.219e-05,2]
[422692632,1779253839000,-1653.39,8.219e-05,2]
[422692628,1779253839000,-515.99,8.219e-05,2]
[422692630,1779253839000,-224.86389075,8.219e-05,2]
[422692634,1779253839000,-500.0,8.219e-05,2]
[422692621,1779253839000,-500.0,8.219e-05,2]
[422692633,1779253839000,-500.0,8.219e-05,2]
[422692636,1779253839000,-500.0,8.219e-05,2]
[422692637,1779253839000,-500.0,8.219e-05,2]
[422692642,1779253839000,-500.0,8.219e-05,2]
[422692644,1779253839000,-500.0,8.219e-05,2]
[422692638,1779253839000,-500.0,8.219e-05,2]
[422692641,1779253839000,-500.0,8.219e-05,2]
[422692646,1779253839000,-500.0,8.219e-05,2]
[422692645,1779253839000,-500.0,8.219e-05,2]
[422692639,1779253839000,-500.0,8.219e-05,2]
[422692640,1779253839000,-500.0,8.219e-05,2]
[422692643,1779253839000,-500.0,8.219e-05,2]
[422692581,1779253839000,-667.03,8.219e-05,2]
[422692635,1779253839000,-500.0,8.219e-05,2]
[422692619,1779253839000,-500.0,8.219e-05,2]
[422692631,1779253839000,-2724.9,8.219e-05,2]
[422692616,1779253839000,-500.0,8.219e-05,2]
[422692591,1779253839000,-500.0,8.219e-05,2]
[422692617,1779253839000,-500.0,8.219e-05,2]
[422692590,1779253839000,-766.99,8.219e-05,2]
[422692593,1779253839000,-500.0,8.219e-05,2]
[422692594,1779253839000,-500.0,8.219e-05,2]
[422692592,1779253839000,-500.0,8.219e-05,2]
[422692596,1779253839000,-500.0,8.219e-05,2]
[422692595,1779253839000,-500.0,8.219e-05,2]
[422692598,1779253839000,-345.50869266,8.219e-05,2]
[422692599,1779253839000,-500.0,8.219e-05,2]
[422692597,1779253839000,-154.49130734,8.219e-05,2]
[422692601,1779253839000,-769.64,8.219e-05,2]
[422692609,1779253839000,-500.0,8.219e-05,2]
[422692612,1779253839000,-501.50506513,8.219e-05,2]
[422692600,1779253839000,-500.0,8.219e-05,2]
[422692613,1779253839000,-500.0,8.219e-05,2]
[422692607,1779253839000,-500.57989358,8.219e-05,2]
[422692606,1779253839000,-1522.62,8.219e-05,2]
[422692604,1779253839000,-396.89123405,8.219e-05,2]
[422692602,1779253839000,-358.58230607,8.219e-05,2]
[422692605,1779253839000,-500.0,8.219e-05,2]
[422692608,1779253839000,-609.97,8.219e-05,2]
[422692614,1779253839000,-1339.23,8.219e-05,2]
[422692610,1779253839000,-500.75136092,8.219e-05,2]
[422692611,1779253839000,-500.0,8.219e-05,2]
[422692615,1779253839000,-500.0,8.219e-05,2]
[422692603,1779253839000,-717.99876595,8.219e-05,2]
[422692698,1779253840000,-500.0,8.219e-05,2]
[422692682,1779253840000,-500.0,8.219e-05,2]
[422692686,1779253840000,-500.0,8.219e-05,2]
[422692690,1779253840000,-500.0,8.219e-05,2]
[422692697,1779253840000,-500.88722399,8.219e-05,2]
[422692687,1779253840000,-500.0,8.219e-05,2]
[422692677,1779253840000,-500.0,8.219e-05,2]
[422692696,1779253840000,-652.84,8.219e-05,2]
[422692685,1779253840000,-500.0,8.219e-05,2]
[422692683,1779253840000,-500.0,8.219e-05,2]
[422692681,1779253840000,-500.0,8.219e-05,2]
[422692692,1779253840000,-500.0,8.219e-05,2]
[422692688,1779253840000,-1845.71510106,8.219e-05,2]
[422692695,1779253840000,-500.0,8.219e-05,2]
[422692705,1779253840000,-500.0,8.219e-05,2]
[422692693,1779253840000,-500.0,8.219e-05,2]
[422692689,1779253840000,-1400.31,8.219e-05,2]
[422692694,1779253840000,-500.0,8.219e-05,2]
[422692711,1779253840000,-500.0,8.219e-05,2]
[422692700,1779253840000,-500.0,8.219e-05,2]
[422692699,1779253840000,-1000.0,8.219e-05,2]
[422692701,1779253840000,-500.0,8.219e-05,2]
[422692710,1779253840000,-6582.72,8.219e-05,2]
[422692709,1779253840000,-448.02155403,8.219e-05,2]
[422692708,1779253840000,-500.0,8.219e-05,2]
[422692704,1779253840000,-500.0,8.219e-05,2]
[422692679,1779253840000,-500.0,8.219e-05,2]
[422692702,1779253840000,-227.8664111,8.219e-05,2]
[422692691,1779253840000,-500.0,8.219e-05,2]
[422692680,1779253840000,-494.97332309,8.219e-05,2]
[422692649,1779253840000,-500.0,8.219e-05,2]
[422692678,1779253840000,-500.0,8.219e-05,2]
[422692703,1779253840000,-500.0,8.219e-05,2]
[422692648,1779253840000,-500.0,8.219e-05,2]
[422692647,1779253840000,-500.0,8.219e-05,2]
[422692651,1779253840000,-500.0,8.219e-05,2]
[422692650,1779253840000,-500.0,8.219e-05,2]
[422692652,1779253840000,-500.0,8.219e-05,2]
[422692658,1779253840000,-500.0,8.219e-05,2]
[422692659,1779253840000,-500.0,8.219e-05,2]
[422692656,1779253840000,-500.0,8.219e-05,2]
[422692654,1779253840000,-500.0,8.219e-05,2]
[422692655,1779253840000,-500.0,8.219e-05,2]
[422692653,1779253840000,-500.0,8.219e-05,2]
[422692657,1779253840000,-866.91,8.219e-05,2]
[422692660,1779253840000,-500.0,8.219e-05,2]
[422692661,1779253840000,-500.94315483,8.219e-05,2]
[422692671,1779253840000,-162.54589324,8.219e-05,2]
[422692662,1779253840000,-1353.0,8.219e-05,2]
[422692668,1779253840000,-500.0,8.219e-05,2]
[422692664,1779253840000,-734.29,8.219e-05,2]
[422692672,1779253840000,-500.0,8.219e-05,2]
[422692665,1779253840000,-500.0,8.219e-05,2]
[422692669,1779253840000,-155.8951672,8.219e-05,2]
[422692663,1779253840000,-501.7831665,8.219e-05,2]
[422692667,1779253840000,-151.5,8.219e-05,2]
[422692670,1779253840000,-500.0,8.219e-05,2]
[422692674,1779253840000,-500.0,8.219e-05,2]
[422692684,1779253840000,-258.55683001,8.219e-05,2]
[422692675,1779253840000,-500.0,8.219e-05,2]
[422692673,1779253840000,-500.0,8.219e-05,2]
[422692676,1779253840000,-500.0,8.219e-05,2]
[422692706,1779253840000,-500.0,8.219e-05,2]
[422692666,1779253840000,-151.5,8.219e-05,2]
[422692722,1779253840000,-500.0,8.219e-05,2]
[422692746,1779253840000,-500.0,8.219e-05,2]
[422692745,1779253840000,-2145.16,8.219e-05,2]
[422692751,1779253840000,-500.0,8.219e-05,2]
[422692740,1779253840000,-500.0,8.219e-05,2]
[422692774,1779253840000,-1756.94,8.219e-05,2]
[422692748,1779253840000,-404.3002569,8.219e-05,2]
[422692764,1779253840000,-500.0,8.219e-05,2]
[422692763,1779253840000,-500.0,8.219e-05,2]
[422692753,1779253840000,-500.0,8.219e-05,2]
[422692765,1779253840000,-502.65326402,8.219e-05,2]
[422692752,1779253840000,-2431.41,8.219e-05,2]
[422692754,1779253840000,-500.0,8.219e-05,2]
[422692756,1779253840000,-500.90614684,8.219e-05,2]
[422692758,1779253840000,-500.0,8.219e-05,2]
[422692761,1779253840000,-339.70384697,8.219e-05,2]
[422692755,1779253840000,-500.0,8.219e-05,2]
[422692757,1779253840000,-500.0,8.219e-05,2]
[422692760,1779253840000,-500.0,8.219e-05,2]
[422692759,1779253840000,-500.0,8.219e-05,2]
[422692762,1779253840000,-500.0,8.219e-05,2]
[422692767,1779253840000,-500.0,8.219e-05,2]
[422692766,1779253840000,-1924.53,8.219e-05,2]
[422692768,1779253840000,-500.0,8.219e-05,2]
[422692773,1779253840000,-363.03065537,8.219e-05,2]
[422692772,1779253840000,-1765.95,8.219e-05,2]
[422692771,1779253840000,-666.47,8.219e-05,2]
[422692770,1779253840000,-500.0,8.219e-05,2]
[422692769,1779253840000,-500.0,8.219e-05,2]
[422692707,1779253840000,-500.39536913,8.219e-05,2]
[422692744,1779253840000,-606.4,8.219e-05,2]
[422692747,1779253840000,-2888.2,8.219e-05,2]
[422692775,1779253840000,-500.0,8.219e-05,2]
[422692749,1779253840000,-479.06935852,8.219e-05,2]
[422692742,1779253840000,-2021.35,8.219e-05,2]
[422692712,1779253840000,-386.95231413,8.219e-05,2]
[422692723,1779253840000,-500.0,8.219e-05,2]
[422692713,1779253840000,-3020.76,8.219e-05,2]
[422692715,1779253840000,-500.0,8.219e-05,2]
[422692724,1779253840000,-500.0,8.219e-05,2]
[422692716,1779253840000,-500.0,8.219e-05,2]
[422692714,1779253840000,-500.0,8.219e-05,2]
[422692717,1779253840000,-500.0,8.219e-05,2]
[422692719,1779253840000,-500.0,8.219e-05,2]
[422692721,1779253840000,-1333.21,8.219e-05,2]
[422692720,1779253840000,-500.0,8.219e-05,2]
[422692736,1779253840000,-500.0,8.219e-05,2]
[422692726,1779253840000,-500.87216938,8.219e-05,2]
[422692738,1779253840000,-500.0,8.219e-05,2]
[422692718,1779253840000,-500.0,8.219e-05,2]
[422692737,1779253840000,-1518.43,8.219e-05,2]
[422692729,1779253840000,-501.01014753,8.219e-05,2]
[422692743,1779253840000,-500.0,8.219e-05,2]
[422692739,1779253840000,-508.01601313,8.219e-05,2]
[422692735,1779253840000,-606.11,8.219e-05,2]
[422692733,1779253840000,-330.63052659,8.219e-05,2]
[422692732,1779253840000,-500.0,8.219e-05,2]
[422692741,1779253840000,-2915.29,8.219e-05,2]
[422692730,1779253840000,-500.0,8.219e-05,2]
[422692725,1779253840000,-825.14,8.219e-05,2]
[422692734,1779253840000,-537.84,8.219e-05,2]
[422692731,1779253840000,-500.0,8.219e-05,2]
[422692750,1779253840000,-219.70035329,8.219e-05,2]
[422692727,1779253840000,-500.0,8.219e-05,2]
[422692728,1779253840000,-501.3591837,8.219e-05,2]
[422692816,1779253841000,-30692.84,8.219e-05,2]
[422692817,1779253841000,-500.0,8.219e-05,2]
[422692811,1779253841000,-500.0,8.219e-05,2]
[422692818,1779253841000,-380.2999464,8.219e-05,2]
[422692808,1779253841000,-207.84910529,8.219e-05,2]
[422692809,1779253841000,-500.0,8.219e-05,2]
[422692815,1779253841000,-500.0,8.219e-05,2]
[422692806,1779253841000,-500.0,8.219e-05,2]
[422692812,1779253841000,-500.0,8.219e-05,2]
[422692814,1779253841000,-500.0,8.219e-05,2]
[422692813,1779253841000,-500.0,8.219e-05,2]
[422692810,1779253841000,-500.0,8.219e-05,2]
[422692824,1779253841000,-1240.91,8.219e-05,2]
[422692832,1779253841000,-500.0,8.219e-05,2]
[422692830,1779253841000,-500.0,8.219e-05,2]
[422692825,1779253841000,-500.0,8.219e-05,2]
[422692829,1779253841000,-6063.85,8.219e-05,2]
[422692821,1779253841000,-500.0,8.219e-05,2]
[422692820,1779253841000,-1998.99,8.219e-05,2]
[422692822,1779253841000,-500.0,8.219e-05,2]
[422692823,1779253841000,-491.18288749,8.219e-05,2]
[422692831,1779253841000,-500.0,8.219e-05,2]
[422692827,1779253841000,-549.78,8.219e-05,2]
[422692826,1779253841000,-501.03371215,8.219e-05,2]
[422692807,1779253841000,-500.0,8.219e-05,2]
[422692828,1779253841000,-500.0,8.219e-05,2]
[422692819,1779253841000,-500.0,8.219e-05,2]
[422692797,1779253841000,-500.0,8.219e-05,2]
[422692788,1779253841000,-552.8672424,8.219e-05,2]
[422692796,1779253841000,-501.08373122,8.219e-05,2]
[422692834,1779253841000,-500.0,8.219e-05,2]
[422692778,1779253841000,-2121.79,8.219e-05,2]
[422692777,1779253841000,-1090.37,8.219e-05,2]
[422692776,1779253841000,-500.0,8.219e-05,2]
[422692780,1779253841000,-500.0,8.219e-05,2]
[422692781,1779253841000,-500.0,8.219e-05,2]
[422692790,1779253841000,-2009.7,8.219e-05,2]
[422692779,1779253841000,-500.0,8.219e-05,2]
[422692787,1779253841000,-2158.56,8.219e-05,2]
[422692782,1779253841000,-500.0,8.219e-05,2]
[422692785,1779253841000,-500.0,8.219e-05,2]
[422692786,1779253841000,-1011.77,8.219e-05,2]
[422692791,1779253841000,-5675.97,8.219e-05,2]
[422692783,1779253841000,-500.0,8.219e-05,2]
[422692784,1779253841000,-500.0,8.219e-05,2]
[422692789,1779253841000,-500.0,8.219e-05,2]
[422692792,1779253841000,-1078.06,8.219e-05,2]
[422692804,1779253841000,-500.0,8.219e-05,2]
[422692794,1779253841000,-500.0,8.219e-05,2]
[422692793,1779253841000,-500.0,8.219e-05,2]
[422692803,1779253841000,-1564.93,8.219e-05,2]
[422692795,1779253841000,-287.08773257,8.219e-05,2]
[422692805,1779253841000,-4369.51,8.219e-05,2]
[422692801,1779253841000,-781.28,8.219e-05,2]
[422692798,1779253841000,-500.0,8.219e-05,2]
[422692800,1779253841000,-500.0,8.219e-05,2]
[422692799,1779253841000,-500.0,8.219e-05,2]
[422692802,1779253841000,-1573.32,8.219e-05,2]
[422692839,1779253841000,-500.0,8.219e-05,2]
[422692833,1779253841000,-416.31828656,8.219e-05,2]
[422692884,1779253841000,-1845.71510105,8.288e-05,2]
[422692870,1779253841000,-1311.79,8.219e-05,2]
[422692874,1779253841000,-4707.77,8.219e-05,2]
[422692871,1779253841000,-296.8641205,8.219e-05,2]
[422692875,1779253841000,-314.08314423,8.219e-05,2]
[422692876,1779253841000,-500.0,8.219e-05,2]
[422692878,1779253841000,-2023.45,8.219e-05,2]
[422692880,1779253841000,-500.0,8.219e-05,2]
[422692891,1779253841000,-150.0,8.381e-05,2]
[422692890,1779253841000,-1845.71510105,8.356e-05,2]
[422692879,1779253841000,-819.34,8.219e-05,2]
[422692882,1779253841000,-152.0,8.265e-05,30]
[422692886,1779253841000,-500.0,8.315e-05,2]
[422692883,1779253841000,-500.0,8.278e-05,2]
[422692885,1779253841000,-500.0,8.315e-05,2]
[422692881,1779253841000,-1.0,8.232e-05,30]
[422692889,1779253841000,-448.0,8.345e-05,2]
[422692887,1779253841000,-295.82,8.315e-05,2]
[422692888,1779253841000,-420.0,8.345e-05,2]
[422692892,1779253841000,-443.0,8.381e-05,2]
[422692895,1779253841000,-1845.71510105,8.425e-05,2]
[422692896,1779253841000,-582.27484618,8.493e-05,2]
[422692894,1779253841000,-185.0,8.381e-05,2]
[422692899,1779253841000,-275.2357261,8.493e-05,2]
[422692898,1779253841000,-500.0,8.493e-05,2]
[422692897,1779253841000,-3116.2369,8.493e-05,2]
[422692837,1779253841000,-1359.63,8.219e-05,2]
[422692893,1779253841000,-742.0,8.381e-05,2]
[422692869,1779253841000,-500.0,8.219e-05,2]
[422692872,1779253841000,-500.0,8.219e-05,2]
[422692877,1779253841000,-500.0,8.219e-05,2]
[422692867,1779253841000,-937.65,8.219e-05,2]
[422692840,1779253841000,-1186.8,8.219e-05,2]
[422692835,1779253841000,-501.20991764,8.219e-05,2]
[422692836,1779253841000,-2566.99,8.219e-05,2]
[422692838,1779253841000,-501.3547822,8.219e-05,2]
[422692841,1779253841000,-500.0,8.219e-05,2]
[422692850,1779253841000,-500.0,8.219e-05,2]
[422692846,1779253841000,-500.0,8.219e-05,2]
[422692848,1779253841000,-500.0,8.219e-05,2]
[422692868,1779253841000,-232.62984432,8.219e-05,2]
[422692849,1779253841000,-2668.41,8.219e-05,2]
[422692851,1779253841000,-426.90632621,8.219e-05,2]
[422692852,1779253841000,-500.0,8.219e-05,2]
[422692853,1779253841000,-500.0,8.219e-05,2]
[422692854,1779253841000,-500.91586533,8.219e-05,2]
[422692847,1779253841000,-500.86031082,8.219e-05,2]
[422692855,1779253841000,-1938.51,8.219e-05,2]
[422692866,1779253841000,-500.0,8.219e-05,2]
[422692865,1779253841000,-521.46,8.219e-05,2]
[422692861,1779253841000,-1571.7,8.219e-05,2]
[422692873,1779253841000,-1709.26,8.219e-05,2]
[422692860,1779253841000,-500.0,8.219e-05,2]
[422692862,1779253841000,-500.0,8.219e-05,2]
[422692864,1779253841000,-730.32,8.219e-05,2]
[422692859,1779253841000,-766.36,8.219e-05,2]
[422692858,1779253841000,-500.0,8.219e-05,2]
[422692856,1779253841000,-500.0,8.219e-05,2]
[422692857,1779253841000,-628.16,8.219e-05,2]
[422692863,1779253841000,-4886.17,8.219e-05,2]
[422692946,1779253842000,-500.0,8.493e-05,2]
[422692947,1779253842000,-954.32,8.493e-05,2]
[422692941,1779253842000,-525.33,8.493e-05,2]
[422692938,1779253842000,-500.0,8.493e-05,2]
[422692933,1779253842000,-500.0,8.493e-05,2]
[422692936,1779253842000,-1143.38,8.493e-05,2]
[422692939,1779253842000,-500.0,8.493e-05,2]
[422692935,1779253842000,-500.0,8.493e-05,2]
[422692931,1779253842000,-500.0,8.493e-05,2]
[422692945,1779253842000,-500.0,8.493e-05,2]
[422692944,1779253842000,-535.7,8.493e-05,2]
[422692940,1779253842000,-2726.82,8.493e-05,2]
[422692953,1779253842000,-1490.61,8.493e-05,2]
[422692937,1779253842000,-500.0,8.493e-05,2]
[422692956,1779253842000,-500.0,8.493e-05,2]
[422692966,1779253842000,-2890.01,8.493e-05,2]
[422692954,1779253842000,-500.0,8.493e-05,2]
[422692934,1779253842000,-719.85,8.493e-05,2]
[422692963,1779253842000,-864.46,8.493e-05,2]
[422692960,1779253842000,-500.0,8.493e-05,2]
[422692961,1779253842000,-568.48,8.493e-05,2]
[422692972,1779253842000,-500.0,8.493e-05,2]
[422692971,1779253842000,-500.0,8.493e-05,2]
[422692948,1779253842000,-500.0,8.493e-05,2]
[422692951,1779253842000,-500.0,8.493e-05,2]
[422692957,1779253842000,-500.0,8.493e-05,2]
[422692959,1779253842000,-500.0,8.493e-05,2]
[422692955,1779253842000,-519.7,8.493e-05,2]
[422692958,1779253842000,-500.0,8.493e-05,2]
[422692950,1779253842000,-500.0,8.493e-05,2]
[422692952,1779253842000,-515.14,8.493e-05,2]
[422692949,1779253842000,-956.18,8.493e-05,2]
[422692942,1779253842000,-500.0,8.493e-05,2]
[422692904,1779253842000,-500.0,8.493e-05,2]
[422692932,1779253842000,-500.0,8.493e-05,2]
[422692901,1779253842000,-500.0,8.493e-05,2]
[422692900,1779253842000,-591.4956,8.493e-05,2]
[422692902,1779253842000,-500.0,8.493e-05,2]
[422692903,1779253842000,-651.51,8.493e-05,2]
[422692905,1779253842000,-500.0,8.493e-05,2]
[422692916,1779253842000,-500.0,8.493e-05,2]
[422692906,1779253842000,-500.0,8.493e-05,2]
[422692909,1779253842000,-500.0,8.493e-05,2]
[422692914,1779253842000,-892.28,8.493e-05,2]
[422692915,1779253842000,-500.0,8.493e-05,2]
[422692917,1779253842000,-500.0,8.493e-05,2]
[422692910,1779253842000,-500.0,8.493e-05,2]
[422692907,1779253842000,-500.0,8.493e-05,2]
[422692911,1779253842000,-500.0,8.493e-05,2]
[422692943,1779253842000,-554.37,8.493e-05,2]
[422692908,1779253842000,-571.58,8.493e-05,2]
[422692912,1779253842000,-500.0,8.493e-05,2]
[422692918,1779253842000,-500.0,8.493e-05,2]
[422692930,1779253842000,-500.0,8.493e-05,2]
[422692921,1779253842000,-500.0,8.493e-05,2]
[422692920,1779253842000,-500.0,8.493e-05,2]
[422692929,1779253842000,-514.49381635,8.493e-05,2]
[422692919,1779253842000,-500.0,8.493e-05,2]
[422692922,1779253842000,-500.0,8.493e-05,2]
[422692927,1779253842000,-1092.1,8.493e-05,2]
[422692928,1779253842000,-500.0,8.493e-05,2]
[422692923,1779253842000,-500.0,8.493e-05,2]
[422692926,1779253842000,-639.47540881,8.493e-05,2]
[422692924,1779253842000,-500.0,8.493e-05,2]
[422692925,1779253842000,-500.0,8.493e-05,2]
[422692913,1779253842000,-500.0,8.493e-05,2]
[422692970,1779253842000,-275.43283254,8.493e-05,2]
[422693027,1779253842000,-600.69554256,8.493e-05,2]
[422692964,1779253842000,-667.03,8.493e-05,2]
[422693008,1779253842000,-500.0,8.493e-05,2]
[422693006,1779253842000,-500.0,8.493e-05,2]
[422693009,1779253842000,-500.0,8.493e-05,2]
[422693010,1779253842000,-500.0,8.493e-05,2]
[422693012,1779253842000,-500.99117416,8.493e-05,2]
[422693014,1779253842000,-500.0,8.493e-05,2]
[422693005,1779253842000,-500.0,8.493e-05,2]
[422693016,1779253842000,-500.0,8.493e-05,2]
[422693015,1779253842000,-500.0,8.493e-05,2]
[422693017,1779253842000,-500.0,8.493e-05,2]
[422693019,1779253842000,-332.55698305,8.493e-05,2]
[422693018,1779253842000,-500.85071183,8.493e-05,2]
[422693032,1779253842000,-500.0,8.493e-05,2]
[422693036,1779253842000,-500.0,8.493e-05,2]
[422693007,1779253842000,-500.0,8.493e-05,2]
[422693024,1779253842000,-500.0,8.493e-05,2]
[422693033,1779253842000,-866.91,8.493e-05,2]
[422693035,1779253842000,-500.0,8.493e-05,2]
[422693021,1779253842000,-500.0,8.493e-05,2]
[422693034,1779253842000,-500.0,8.493e-05,2]
[422693037,1779253842000,-1353.0,8.493e-05,2]
[422693029,1779253842000,-500.0,8.493e-05,2]
[422693028,1779253842000,-500.0,8.493e-05,2]
[422693031,1779253842000,-631.3683749,8.493e-05,2]
[422693030,1779253842000,-500.0,8.493e-05,2]
[422693026,1779253842000,-500.0,8.493e-05,2]
[422692965,1779253842000,-500.0,8.493e-05,2]
[422693040,1779253842000,-500.0,8.493e-05,2]
[422693042,1779253842000,-500.0,8.493e-05,2]
[422693041,1779253842000,-500.0,8.493e-05,2]
[422693025,1779253842000,-500.0,8.493e-05,2]
[422693004,1779253842000,-1653.39,8.493e-05,2]
[422693038,1779253842000,-734.29,8.493e-05,2]
[422692998,1779253842000,-859.28,8.493e-05,2]
[422692997,1779253842000,-500.0,8.493e-05,2]
[422692968,1779253842000,-500.0,8.493e-05,2]
[422692969,1779253842000,-766.99,8.493e-05,2]
[422692967,1779253842000,-500.0,8.493e-05,2]
[422692973,1779253842000,-500.0,8.493e-05,2]
[422692976,1779253842000,-500.0,8.493e-05,2]
[422692974,1779253842000,-359.19544372,8.493e-05,2]
[422692977,1779253842000,-500.0,8.493e-05,2]
[422692975,1779253842000,-230.98589252,8.493e-05,2]
[422692978,1779253842000,-500.0,8.493e-05,2]
[422692981,1779253842000,-489.72706525,8.493e-05,2]
[422692979,1779253842000,-769.64,8.493e-05,2]
[422692982,1779253842000,-1522.62,8.493e-05,2]
[422692987,1779253842000,-1339.23,8.493e-05,2]
[422692986,1779253842000,-500.0,8.493e-05,2]
[422692962,1779253842000,-500.0,8.493e-05,2]
[422692985,1779253842000,-500.0,8.493e-05,2]
[422692983,1779253842000,-609.97,8.493e-05,2]
[422693000,1779253842000,-516.01302913,8.493e-05,2]
[422692996,1779253842000,-500.0,8.493e-05,2]
[422692999,1779253842000,-500.0,8.493e-05,2]
[422692993,1779253842000,-541.24,8.493e-05,2]
[422692989,1779253842000,-500.0,8.493e-05,2]
[422692994,1779253842000,-500.0,8.493e-05,2]
[422692990,1779253842000,-500.0,8.493e-05,2]
[422692980,1779253842000,-1114.89,8.493e-05,2]
[422692992,1779253842000,-491.94595039,8.493e-05,2]
[422692984,1779253842000,-500.0,8.493e-05,2]
[422693002,1779253842000,-2724.9,8.493e-05,2]
[422693001,1779253842000,-515.99,8.493e-05,2]
[422692991,1779253842000,-292.77079304,8.493e-05,2]
[422692988,1779253842000,-500.0,8.493e-05,2]
[422693080,1779253843000,-2021.35,8.493e-05,2]
[422693091,1779253843000,-500.0,8.493e-05,2]
[422693073,1779253843000,-537.84,8.493e-05,2]
[422693081,1779253843000,-606.4,8.493e-05,2]
[422693075,1779253843000,-500.0,8.493e-05,2]
[422693078,1779253843000,-501.20919463,8.493e-05,2]
[422693076,1779253843000,-1518.43,8.493e-05,2]
[422693083,1779253843000,-500.0,8.493e-05,2]
[422693088,1779253843000,-500.0,8.493e-05,2]
[422693082,1779253843000,-2145.16,8.493e-05,2]
[422693084,1779253843000,-2888.2,8.493e-05,2]
[422693085,1779253843000,-500.0,8.493e-05,2]
[422693077,1779253843000,-504.21799199,8.493e-05,2]
[422693094,1779253843000,-1924.53,8.493e-05,2]
[422693092,1779253843000,-500.0,8.493e-05,2]
[422693090,1779253843000,-500.0,8.493e-05,2]
[422693093,1779253843000,-500.0,8.493e-05,2]
[422693086,1779253843000,-2431.41,8.493e-05,2]
[422693087,1779253843000,-500.0,8.493e-05,2]
[422693096,1779253843000,-500.0,8.493e-05,2]